[Event "Late-Titled-Tuesday-Blitz-June-18-2024"]
[Site "Chess.com"]
[Date "2024.06.18"]
[Round "6"]
[White "newyorkmouse"]
[Black "Adar_07"]
[Result "0-1"]
[WhiteElo "2594"]
[BlackElo "2818"]
[TimeControl "180+1"]
[EndTime "15:09:40 PDT"]
[Termination "Adar_07 won by checkmate"]

1. a3 {[%clk 0:03:00.9]} 1... Nf6 {[%clk 0:02:59.1]} 2. h3 {[%clk 0:02:56.1]}
2... e5 {[%clk 0:02:58.3]} 3. c3 {[%clk 0:02:52.6]} 3... d5 {[%clk 0:02:58.3]}
4. d4 {[%clk 0:02:51.9]} 4... e4 {[%clk 0:02:58.3]} 5. Bf4 {[%clk 0:02:50.6]}
5... c5 {[%clk 0:02:57.8]} 6. e3 {[%clk 0:02:48]} 6... Nc6 {[%clk 0:02:57.3]} 7.
dxc5 {[%clk 0:02:46]} 7... Bxc5 {[%clk 0:02:57.1]} 8. Nd2 {[%clk 0:02:44.6]}
8... Bf5 {[%clk 0:02:38.3]} 9. Ne2 {[%clk 0:02:31.1]} 9... Bg6 {[%clk
0:02:33.6]} 10. Nb3 {[%clk 0:02:28]} 10... Be7 {[%clk 0:02:25.6]} 11. Qd2 {[%clk
0:02:28.3]} 11... Qb6 {[%clk 0:02:25.1]} 12. Ned4 {[%clk 0:02:25.5]} 12... O-O
{[%clk 0:02:22.8]} 13. a4 {[%clk 0:02:25]} 13... a6 {[%clk 0:02:17.8]} 14. a5
{[%clk 0:02:24.8]} 14... Qa7 {[%clk 0:02:15.9]} 15. Be2 {[%clk 0:02:24.1]} 15...
Rac8 {[%clk 0:02:15.7]} 16. O-O {[%clk 0:02:23.3]} 16... Rfd8 {[%clk 0:02:14.8]}
17. Bh2 {[%clk 0:02:23.3]} 17... Nd7 {[%clk 0:02:03.8]} 18. Rfd1 {[%clk
0:02:18.3]} 18... Bf6 {[%clk 0:01:58.1]} 19. Bd6 {[%clk 0:01:39.7]} 19... Nxd4
{[%clk 0:01:55.8]} 20. Nxd4 {[%clk 0:01:34.6]} 20... Nc5 {[%clk 0:01:52.6]} 21.
Bg3 {[%clk 0:01:26.5]} 21... h5 {[%clk 0:01:42.4]} 22. Qc2 {[%clk 0:01:25.6]}
22... h4 {[%clk 0:01:41.1]} 23. Bh2 {[%clk 0:01:24.3]} 23... Bxd4 {[%clk
0:01:18.4]} 24. Rxd4 {[%clk 0:01:22.1]} 24... Ne6 {[%clk 0:01:18.6]} 25. Rd2
{[%clk 0:01:19.8]} 25... d4 {[%clk 0:01:18.9]} 26. Bg4 {[%clk 0:00:45.7]} 26...
dxe3 {[%clk 0:01:16.2]} 27. fxe3 {[%clk 0:00:38.6]} 27... Qxe3+ {[%clk
0:01:15.5]} 28. Rf2 {[%clk 0:00:39.2]} 28... f5 {[%clk 0:01:08.2]} 29. Qb3
{[%clk 0:00:23.2]} 29... Rc6 {[%clk 0:01:00.9]} 30. Qxb7 {[%clk 0:00:21.6]}
30... Nd4 {[%clk 0:00:34.4]} 31. cxd4 {[%clk 0:00:09.3]} 31... Rc1+ {[%clk
0:00:35.3]} 32. Rxc1 {[%clk 0:00:08.5]} 32... Qxc1+ {[%clk 0:00:36.2]} 33. Rf1
{[%clk 0:00:08.6]} 33... Qe3+ {[%clk 0:00:36.7]} 34. Kh1 {[%clk 0:00:09.1]}
34... fxg4 {[%clk 0:00:34.9]} 35. Be5 {[%clk 0:00:06.9]} 35... Qh6 {[%clk
0:00:26.9]} 36. Qxa6 {[%clk 0:00:03.3]} 36... gxh3 {[%clk 0:00:21.6]} 37. Qe6+
{[%clk 0:00:03.8]} 37... Kh7 {[%clk 0:00:21.1]} 38. Qxh3 {[%clk 0:00:04.4]}
38... e3 {[%clk 0:00:18.3]} 39. Re1 {[%clk 0:00:03.3]} 39... e2 {[%clk
0:00:09.9]} 40. Rxe2 {[%clk 0:00:03.5]} 40... Rf8 {[%clk 0:00:07.6]} 41. Re1
{[%clk 0:00:03.1]} 41... Rf2 {[%clk 0:00:07.3]} 42. d5 {[%clk 0:00:01.7]} 42...
Qd2 {[%clk 0:00:04.2]} 43. Qxh4+ {[%clk 0:00:01.8]} 43... Kg8 {[%clk 0:00:04.7]}
44. Qd8+ {[%clk 0:00:02.4]} 44... Rf8 {[%clk 0:00:05.2]} 45. Qh4 {[%clk
0:00:02.2]} 45... Qxd5 {[%clk 0:00:04.6]} 46. Bc3 {[%clk 0:00:01.9]} 46... Qf7
{[%clk 0:00:01.3]} 47. Rg1 {[%clk 0:00:02.3]} 47... Qd7 {[%clk 0:00:01.6]} 48.
Qd4 {[%clk 0:00:02.4]} 48... Qf7 {[%clk 0:00:01.5]} 49. Qd2 {[%clk 0:00:02.1]}
49... Kh7 {[%clk 0:00:02]} 50. Qg5 {[%clk 0:00:02.4]} 50... Rh8 {[%clk
0:00:02.6]} 51. g3 {[%clk 0:00:01.7]} 51... Kg8+ {[%clk 0:00:03.5]} 52. Kg2
{[%clk 0:00:02]} 52... Be4# {[%clk 0:00:03.8]} 0-1

[Event "Late-Titled-Tuesday-Blitz-June-18-2024"]
[Site "Chess.com"]
[Date "2024.06.18"]
[Round "6"]
[White "RZ0"]
[Black "Yaacovn"]
[Result "1-0"]
[WhiteElo "2558"]
[BlackElo "2786"]
[TimeControl "180+1"]
[EndTime "15:09:40 PDT"]
[Termination "RZ0 won on time"]

1. Nf3 {[%clk 0:02:59.4]} 1... Nf6 {[%clk 0:02:59.7]} 2. d4 {[%clk 0:02:58.3]}
2... e6 {[%clk 0:02:59.6]} 3. c4 {[%clk 0:02:56.7]} 3... Bb4+ {[%clk 0:02:59.4]}
4. Nbd2 {[%clk 0:02:54.1]} 4... b6 {[%clk 0:02:59.1]} 5. a3 {[%clk 0:02:52.9]}
5... Bxd2+ {[%clk 0:02:59.1]} 6. Qxd2 {[%clk 0:02:53.6]} 6... Bb7 {[%clk
0:02:56.2]} 7. e3 {[%clk 0:02:52.3]} 7... d6 {[%clk 0:02:56]} 8. Be2 {[%clk
0:02:50.9]} 8... c5 {[%clk 0:02:54.1]} 9. O-O {[%clk 0:02:49.1]} 9... Nc6 {[%clk
0:02:54.5]} 10. b4 {[%clk 0:02:37.3]} 10... O-O {[%clk 0:02:53.1]} 11. Bb2
{[%clk 0:02:36.7]} 11... Qe7 {[%clk 0:02:53]} 12. d5 {[%clk 0:02:25.6]} 12...
Nb8 {[%clk 0:02:47.5]} 13. dxe6 {[%clk 0:02:08.5]} 13... fxe6 {[%clk 0:02:45.8]}
14. Rad1 {[%clk 0:02:07.3]} 14... Rd8 {[%clk 0:02:46]} 15. Qc2 {[%clk
0:01:58.3]} 15... Nbd7 {[%clk 0:02:32.3]} 16. Ng5 {[%clk 0:01:54.1]} 16... h6
{[%clk 0:02:31.8]} 17. Bf3 {[%clk 0:01:49.7]} 17... Bxf3 {[%clk 0:02:28.2]} 18.
Nxf3 {[%clk 0:01:50]} 18... Rac8 {[%clk 0:02:27.6]} 19. b5 {[%clk 0:01:48.7]}
19... Nf8 {[%clk 0:02:20.1]} 20. a4 {[%clk 0:01:45.6]} 20... Rd7 {[%clk
0:02:18.7]} 21. e4 {[%clk 0:01:44.9]} 21... e5 {[%clk 0:02:17.8]} 22. Nh4 {[%clk
0:01:37.7]} 22... Ne6 {[%clk 0:02:08.1]} 23. Nf5 {[%clk 0:01:35.2]} 23... Qf8
{[%clk 0:02:08.2]} 24. g3 {[%clk 0:01:27.7]} 24... Nd4 {[%clk 0:02:07.6]} 25.
Bxd4 {[%clk 0:01:24.9]} 25... exd4 {[%clk 0:02:07.3]} 26. Rde1 {[%clk
0:01:13.3]} 26... Re8 {[%clk 0:02:06.3]} 27. f3 {[%clk 0:01:11.4]} 27... g6
{[%clk 0:02:05.6]} 28. Nh4 {[%clk 0:01:10.6]} 28... Qg7 {[%clk 0:02:02.6]} 29.
Qd3 {[%clk 0:01:07.1]} 29... Rde7 {[%clk 0:01:57.7]} 30. Re2 {[%clk 0:01:02.5]}
30... Qh7 {[%clk 0:01:47.9]} 31. Rfe1 {[%clk 0:01:01.2]} 31... Nd7 {[%clk
0:01:45.9]} 32. f4 {[%clk 0:00:58.8]} 32... Qf7 {[%clk 0:01:44.9]} 33. e5 {[%clk
0:00:52.1]} 33... dxe5 {[%clk 0:01:28.1]} 34. Nxg6 {[%clk 0:00:51.5]} 34... Re6
{[%clk 0:01:26.6]} 35. Nxe5 {[%clk 0:00:50]} 35... Nxe5 {[%clk 0:01:24.8]} 36.
fxe5 {[%clk 0:00:47.5]} 36... Kg7 {[%clk 0:01:22.3]} 37. Rf1 {[%clk 0:00:46.2]}
37... Qg6 {[%clk 0:01:22.5]} 38. Qf3 {[%clk 0:00:31.3]} 38... Kh7 {[%clk
0:01:05.4]} 39. Qd5 {[%clk 0:00:30.1]} 39... Qg7 {[%clk 0:01:00.1]} 40. Rf6
{[%clk 0:00:27.1]} 40... R6e7 {[%clk 0:00:25.2]} 41. Qf3 {[%clk 0:00:22.9]}
41... Kh8 {[%clk 0:00:19.1]} 42. Qf4 {[%clk 0:00:22.8]} 42... Kh7 {[%clk
0:00:17.6]} 43. Qf5+ {[%clk 0:00:23]} 43... Kh8 {[%clk 0:00:16.9]} 44. e6 {[%clk
0:00:23.4]} 44... Qg5 {[%clk 0:00:13.3]} 45. Qf3 {[%clk 0:00:17.1]} 45... Kg8
{[%clk 0:00:06.5]} 46. h4 {[%clk 0:00:15.2]} 46... Qg7 {[%clk 0:00:06.1]} 47.
Qf5 {[%clk 0:00:14.5]} 47... Kh8 {[%clk 0:00:05.2]} 48. Rg6 {[%clk 0:00:14]}
48... Qf8 {[%clk 0:00:03.7]} 49. Qe5+ {[%clk 0:00:14.1]} 49... Kh7 {[%clk
0:00:03.3]} 50. Qh5 {[%clk 0:00:13.9]} 50... d3 {[%clk 0:00:01.6]} 51. Rf2
{[%clk 0:00:14.2]} 1-0

[Event "Late-Titled-Tuesday-Blitz-June-18-2024"]
[Site "Chess.com"]
[Date "2024.06.18"]
[Round "6"]
[White "Patricius007"]
[Black "familijatop71"]
[Result "0-1"]
[WhiteElo "2545"]
[BlackElo "2323"]
[TimeControl "180+1"]
[EndTime "15:09:40 PDT"]
[Termination "familijatop71 won by checkmate"]

1. e4 {[%clk 0:03:00.9]} 1... d5 {[%clk 0:03:00.3]} 2. exd5 {[%clk 0:03:01]}
2... Qxd5 {[%clk 0:03:00.9]} 3. Nf3 {[%clk 0:03:01.4]} 3... Bg4 {[%clk
0:03:00.1]} 4. Be2 {[%clk 0:03:01.5]} 4... Nc6 {[%clk 0:02:57.1]} 5. Nc3 {[%clk
0:03:02]} 5... Qd7 {[%clk 0:02:50.2]} 6. d4 {[%clk 0:03:02.3]} 6... e6 {[%clk
0:02:26.6]} 7. O-O {[%clk 0:03:00.6]} 7... O-O-O {[%clk 0:02:22.8]} 8. Be3
{[%clk 0:02:59.6]} 8... Nf6 {[%clk 0:02:20.8]} 9. Ne5 {[%clk 0:02:47.2]} 9...
Nxe5 {[%clk 0:02:13]} 10. dxe5 {[%clk 0:02:48.1]} 10... Qxd1 {[%clk 0:02:09.1]}
11. Raxd1 {[%clk 0:02:48.9]} 11... Rxd1 {[%clk 0:02:07.3]} 12. Bxd1 {[%clk
0:02:38.3]} 12... Bxd1 {[%clk 0:02:06.4]} 13. Rxd1 {[%clk 0:02:39.2]} 13... Nd7
{[%clk 0:02:02.9]} 14. Nb5 {[%clk 0:02:35.5]} 14... a6 {[%clk 0:01:53.8]} 15.
Na7+ {[%clk 0:02:31.1]} 15... Kd8 {[%clk 0:01:47.9]} 16. Bg5+ {[%clk 0:02:31.3]}
16... Be7 {[%clk 0:01:42]} 17. Be3 {[%clk 0:02:27.8]} 17... Ke8 {[%clk
0:01:28.2]} 18. a3 {[%clk 0:02:26.4]} 18... Nxe5 {[%clk 0:01:25.6]} 19. Nc8
{[%clk 0:02:21.4]} 19... Nc6 {[%clk 0:01:20.5]} 20. Nxe7 {[%clk 0:02:09.2]}
20... Kxe7 {[%clk 0:01:19.5]} 21. Bc5+ {[%clk 0:02:09.5]} 21... Ke8 {[%clk
0:01:10.7]} 22. b4 {[%clk 0:02:09]} 22... h5 {[%clk 0:01:04.9]} 23. c4 {[%clk
0:02:09.4]} 23... h4 {[%clk 0:01:03.1]} 24. Be3 {[%clk 0:02:03.7]} 24... Rh5
{[%clk 0:00:53.9]} 25. Rb1 {[%clk 0:02:02.3]} 25... b6 {[%clk 0:00:40]} 26. a4
{[%clk 0:01:58.1]} 26... Re5 {[%clk 0:00:37.4]} 27. b5 {[%clk 0:01:53.3]} 27...
axb5 {[%clk 0:00:36.2]} 28. cxb5 {[%clk 0:01:54.2]} 28... Ne7 {[%clk 0:00:34.1]}
29. Bf4 {[%clk 0:01:51.8]} 29... Rc5 {[%clk 0:00:32.4]} 30. h3 {[%clk
0:01:44.4]} 30... Nd5 {[%clk 0:00:32.2]} 31. Bd2 {[%clk 0:01:39]} 31... Nc3
{[%clk 0:00:29]} 32. Ra1 {[%clk 0:01:36.9]} 32... Rc4 {[%clk 0:00:22.8]} 33. a5
{[%clk 0:01:34.4]} 33... bxa5 {[%clk 0:00:20.7]} 34. Rxa5 {[%clk 0:01:35.3]}
34... Kd7 {[%clk 0:00:19]} 35. Kh2 {[%clk 0:01:28.3]} 35... Ne4 {[%clk
0:00:18.9]} 36. Be3 {[%clk 0:01:27.2]} 36... Rb4 {[%clk 0:00:13.3]} 37. Kg1
{[%clk 0:01:03.9]} 37... Nd6 {[%clk 0:00:13.2]} 38. b6 {[%clk 0:01:01.8]} 38...
cxb6 {[%clk 0:00:12.4]} 39. Ra7+ {[%clk 0:01:02.5]} 39... Ke8 {[%clk 0:00:10.4]}
40. Bd2 {[%clk 0:01:01.5]} 40... Rb1+ {[%clk 0:00:10.1]} 41. Kh2 {[%clk
0:01:02.2]} 41... b5 {[%clk 0:00:10.3]} 42. Bg5 {[%clk 0:01:02.3]} 42... f6
{[%clk 0:00:08.2]} 43. Bxh4 {[%clk 0:01:02.5]} 43... b4 {[%clk 0:00:08.6]} 44.
Rxg7 {[%clk 0:01:00.6]} 44... b3 {[%clk 0:00:08.9]} 45. Bg3 {[%clk 0:01:01.3]}
45... b2 {[%clk 0:00:08.2]} 46. Rg8+ {[%clk 0:00:54.8]} 46... Kf7 {[%clk
0:00:07.1]} 47. Rb8 {[%clk 0:00:54.7]} 47... Nc4 {[%clk 0:00:07.4]} 48. Rb7+
{[%clk 0:00:44.5]} 48... Kg6 {[%clk 0:00:07.1]} 49. h4 {[%clk 0:00:18.6]} 49...
Rd1 {[%clk 0:00:06.9]} 50. h5+ {[%clk 0:00:19.5]} 50... Kxh5 {[%clk 0:00:06]}
51. Rb5+ {[%clk 0:00:20.2]} 51... e5 {[%clk 0:00:04.7]} 52. f4 {[%clk
0:00:20.3]} 52... b1=Q {[%clk 0:00:04.4]} 53. Rxb1 {[%clk 0:00:20.7]} 53... Rxb1
{[%clk 0:00:04.1]} 54. fxe5 {[%clk 0:00:21.6]} 54... Nxe5 {[%clk 0:00:04.5]} 55.
Bf2 {[%clk 0:00:22.5]} 55... Ng4+ {[%clk 0:00:03.4]} 56. Kg3 {[%clk 0:00:23.4]}
56... Nxf2 {[%clk 0:00:03.8]} 57. Kxf2 {[%clk 0:00:24.3]} 57... Kg4 {[%clk
0:00:04.5]} 58. Ke2 {[%clk 0:00:24.2]} 58... Rb2+ {[%clk 0:00:05.4]} 59. Kf1
{[%clk 0:00:24.6]} 59... Kg3 {[%clk 0:00:05.9]} 60. Kg1 {[%clk 0:00:24]} 60...
Rxg2+ {[%clk 0:00:06.1]} 61. Kh1 {[%clk 0:00:23.7]} 61... Rf2 {[%clk 0:00:06.3]}
62. Kg1 {[%clk 0:00:24.6]} 62... Rf3 {[%clk 0:00:06.7]} 63. Kh1 {[%clk
0:00:24.9]} 63... Rf1# {[%clk 0:00:07]} 0-1

[Event "Late-Titled-Tuesday-Blitz-June-18-2024"]
[Site "Chess.com"]
[Date "2024.06.18"]
[Round "6"]
[White "Bauman_Guy"]
[Black "chess94cu"]
[Result "1-0"]
[WhiteElo "2909"]
[BlackElo "2628"]
[TimeControl "180+1"]
[EndTime "15:09:43 PDT"]
[Termination "Bauman_Guy won on time"]

1. e4 {[%clk 0:03:00.9]} 1... Nf6 {[%clk 0:02:59.7]} 2. e5 {[%clk 0:03:00.4]}
2... Nd5 {[%clk 0:03:00.3]} 3. d4 {[%clk 0:03:01.3]} 3... d6 {[%clk 0:02:59.9]}
4. Bc4 {[%clk 0:03:01.4]} 4... c6 {[%clk 0:02:54.7]} 5. Nf3 {[%clk 0:02:59.3]}
5... Bg4 {[%clk 0:02:52.8]} 6. h3 {[%clk 0:02:58.9]} 6... Bxf3 {[%clk
0:02:41.4]} 7. Qxf3 {[%clk 0:02:59.7]} 7... e6 {[%clk 0:02:40.9]} 8. O-O {[%clk
0:02:55.4]} 8... Nd7 {[%clk 0:02:39.6]} 9. Qg3 {[%clk 0:02:54.2]} 9... dxe5
{[%clk 0:02:30.5]} 10. dxe5 {[%clk 0:02:55.1]} 10... Qc7 {[%clk 0:02:22.9]} 11.
Re1 {[%clk 0:02:54.1]} 11... h5 {[%clk 0:02:19.3]} 12. h4 {[%clk 0:02:52.1]}
12... O-O-O {[%clk 0:02:15.3]} 13. Nd2 {[%clk 0:02:51]} 13... N7b6 {[%clk
0:02:11.7]} 14. Bb3 {[%clk 0:02:50.9]} 14... Ne7 {[%clk 0:02:04]} 15. Ne4 {[%clk
0:02:45.6]} 15... Nf5 {[%clk 0:02:04.2]} 16. Qh2 {[%clk 0:02:44.1]} 16... Kb8
{[%clk 0:02:02.5]} 17. Bf4 {[%clk 0:02:41.9]} 17... Nd5 {[%clk 0:01:50.4]} 18.
Bg5 {[%clk 0:02:41.7]} 18... Be7 {[%clk 0:01:49]} 19. Rad1 {[%clk 0:02:40.7]}
19... Bxg5 {[%clk 0:01:42.5]} 20. Nxg5 {[%clk 0:02:40.5]} 20... Qe7 {[%clk
0:01:42.9]} 21. Qh3 {[%clk 0:02:35.9]} 21... Nf4 {[%clk 0:01:25.7]} 22. Qf3
{[%clk 0:02:35.3]} 22... Ng6 {[%clk 0:01:24.5]} 23. g3 {[%clk 0:02:35.1]} 23...
Rxd1 {[%clk 0:01:22.6]} 24. Qxd1 {[%clk 0:02:33.6]} 24... Rd8 {[%clk 0:01:21.2]}
25. Qxh5 {[%clk 0:02:33.3]} 25... Nd4 {[%clk 0:01:15.5]} 26. c3 {[%clk
0:02:29.1]} 26... Nf5 {[%clk 0:01:13.1]} 27. Bc2 {[%clk 0:02:26.7]} 27... Rd5
{[%clk 0:01:10.6]} 28. Bxf5 {[%clk 0:02:25.6]} 28... exf5 {[%clk 0:01:11.5]} 29.
e6 {[%clk 0:02:26.2]} 29... f4 {[%clk 0:01:07.1]} 30. Kh2 {[%clk 0:02:19.7]}
30... fxg3+ {[%clk 0:01:06.8]} 31. fxg3 {[%clk 0:02:19.7]} 31... Rd2+ {[%clk
0:00:48.6]} 32. Re2 {[%clk 0:02:08.7]} 32... Rxe2+ {[%clk 0:00:48]} 33. Qxe2
{[%clk 0:02:09.6]} 33... f6 {[%clk 0:00:48.7]} 34. Nf3 {[%clk 0:02:06.5]} 34...
Ne5 {[%clk 0:00:48.2]} 35. Nxe5 {[%clk 0:02:03.1]} 35... Qxe6 {[%clk 0:00:48.8]}
36. Nxc6+ {[%clk 0:02:03.2]} 36... Qxc6 {[%clk 0:00:49.5]} 37. c4 {[%clk
0:01:59.3]} 37... a6 {[%clk 0:00:48.2]} 38. b3 {[%clk 0:01:58.6]} 38... f5
{[%clk 0:00:44.2]} 39. h5 {[%clk 0:01:57.2]} 39... Qf6 {[%clk 0:00:41.4]} 40.
Kh3 {[%clk 0:01:47.8]} 40... Qg5 {[%clk 0:00:33.1]} 41. Qf3 {[%clk 0:01:44.8]}
41... Ka8 {[%clk 0:00:29.9]} 42. b4 {[%clk 0:01:43.2]} 42... g6 {[%clk
0:00:29.6]} 43. hxg6 {[%clk 0:01:39.4]} 43... Qxg6 {[%clk 0:00:30.5]} 44. Kg2
{[%clk 0:01:35.1]} 44... Qg5 {[%clk 0:00:28.3]} 45. Qf4 {[%clk 0:01:33.4]} 45...
Qh5 {[%clk 0:00:28.5]} 46. Qe3 {[%clk 0:01:28.6]} 46... Qg4 {[%clk 0:00:26.2]}
47. Qd3 {[%clk 0:01:22.8]} 47... Kb8 {[%clk 0:00:18.9]} 48. a3 {[%clk 0:01:22]}
48... Ka8 {[%clk 0:00:18.5]} 49. a4 {[%clk 0:01:21]} 49... Kb8 {[%clk
0:00:18.5]} 50. b5 {[%clk 0:01:19.9]} 50... axb5 {[%clk 0:00:17.9]} 51. axb5
{[%clk 0:01:20.4]} 51... Kc8 {[%clk 0:00:15.3]} 52. c5 {[%clk 0:00:50.2]} 52...
f4 {[%clk 0:00:14.3]} 53. Qf3 {[%clk 0:00:50.3]} 53... Qg5 {[%clk 0:00:09.7]}
54. Qxf4 {[%clk 0:00:43.4]} 54... Qxc5 {[%clk 0:00:10.2]} 55. Qg4+ {[%clk
0:00:39.6]} 55... Kb8 {[%clk 0:00:09.9]} 56. Qe2 {[%clk 0:00:40.2]} 56... Qd5+
{[%clk 0:00:09.6]} 57. Kh3 {[%clk 0:00:40.2]} 57... Qf5+ {[%clk 0:00:05.8]} 58.
g4 {[%clk 0:00:40.1]} 58... Qh7+ {[%clk 0:00:06.4]} 59. Kg2 {[%clk 0:00:38.7]}
59... Qg6 {[%clk 0:00:04.6]} 60. Qe5+ {[%clk 0:00:36.3]} 60... Ka7 {[%clk
0:00:03.6]} 61. Qc5+ {[%clk 0:00:36.4]} 61... Kb8 {[%clk 0:00:02.9]} 62. g5
{[%clk 0:00:36.3]} 62... Qe4+ {[%clk 0:00:02.6]} 63. Kg3 {[%clk 0:00:36.7]} 1-0

[Event "Late-Titled-Tuesday-Blitz-June-18-2024"]
[Site "Chess.com"]
[Date "2024.06.18"]
[Round "6"]
[White "HansOnTwitch"]
[Black "vi_pranav"]
[Result "1-0"]
[WhiteElo "3142"]
[BlackElo "3030"]
[TimeControl "180+1"]
[EndTime "15:09:45 PDT"]
[Termination "HansOnTwitch won on time"]

1. e4 {[%clk 0:03:00.9]} 1... e5 {[%clk 0:03:00.2]} 2. Nf3 {[%clk 0:03:01.3]}
2... Nc6 {[%clk 0:03:00.6]} 3. Bc4 {[%clk 0:03:01.9]} 3... Nf6 {[%clk
0:03:00.8]} 4. d3 {[%clk 0:03:02.4]} 4... d5 {[%clk 0:03:01.1]} 5. exd5 {[%clk
0:03:02.2]} 5... Nxd5 {[%clk 0:03:02]} 6. O-O {[%clk 0:03:02.5]} 6... Nb6 {[%clk
0:02:59.6]} 7. Bb5 {[%clk 0:03:02.4]} 7... Bd6 {[%clk 0:03:00]} 8. Bxc6+ {[%clk
0:03:02.6]} 8... bxc6 {[%clk 0:03:00.9]} 9. Nxe5 {[%clk 0:03:03]} 9... Bxe5
{[%clk 0:03:01]} 10. Re1 {[%clk 0:03:03.5]} 10... Qe7 {[%clk 0:02:58]} 11. Kh1
{[%clk 0:03:02.6]} 11... Bb7 {[%clk 0:02:56.2]} 12. f4 {[%clk 0:03:00.2]} 12...
O-O-O {[%clk 0:02:56.4]} 13. Rxe5 {[%clk 0:02:58.4]} 13... Qd6 {[%clk
0:02:54.3]} 14. Nc3 {[%clk 0:02:58.3]} 14... c5 {[%clk 0:02:43.4]} 15. Be3
{[%clk 0:02:10.9]} 15... Nd7 {[%clk 0:02:36.6]} 16. Rg5 {[%clk 0:02:08.8]} 16...
Rde8 {[%clk 0:02:20.8]} 17. Qg1 {[%clk 0:02:07.5]} 17... h5 {[%clk 0:02:13.8]}
18. Ne4 {[%clk 0:01:24.3]} 18... Qe6 {[%clk 0:01:51.1]} 19. Bxc5 {[%clk
0:01:02.6]} 19... f5 {[%clk 0:01:41.2]} 20. Nc3 {[%clk 0:00:51.4]} 20... h4
{[%clk 0:01:16.2]} 21. h3 {[%clk 0:00:51.5]} 21... Nf6 {[%clk 0:01:15.5]} 22.
Qd4 {[%clk 0:00:37.2]} 22... Nh5 {[%clk 0:01:08.8]} 23. Kh2 {[%clk 0:00:32.5]}
23... Qc6 {[%clk 0:00:58.9]} 24. Rg1 {[%clk 0:00:24.3]} 24... g6 {[%clk
0:00:52.9]} 25. b4 {[%clk 0:00:22.3]} 25... Rd8 {[%clk 0:00:19.6]} 26. Qf2
{[%clk 0:00:21.8]} 26... Ng3 {[%clk 0:00:16.2]} 27. b5 {[%clk 0:00:15.7]} 27...
Qf6 {[%clk 0:00:15.9]} 28. Ne2 {[%clk 0:00:16]} 28... Nxe2 {[%clk 0:00:14.3]}
29. Qxe2 {[%clk 0:00:16.9]} 29... Rhe8 {[%clk 0:00:05.9]} 30. Qf2 {[%clk
0:00:17.4]} 30... a6 {[%clk 0:00:05.6]} 31. a4 {[%clk 0:00:16.9]} 31... axb5
{[%clk 0:00:05.7]} 32. axb5 {[%clk 0:00:17.8]} 32... Rd5 {[%clk 0:00:06.3]} 33.
b6 {[%clk 0:00:16.2]} 33... cxb6 {[%clk 0:00:06]} 34. Bxb6 {[%clk 0:00:17.1]}
34... Qd6 {[%clk 0:00:06.6]} 35. Be3 {[%clk 0:00:15.9]} 35... Ra5 {[%clk
0:00:06.6]} 36. Re1 {[%clk 0:00:14.6]} 36... Qc6 {[%clk 0:00:04]} 37. Qxh4
{[%clk 0:00:11.2]} 37... Ra2 {[%clk 0:00:02.7]} 38. Re2 {[%clk 0:00:08.5]} 38...
Rxc2 {[%clk 0:00:02.1]} 39. Rxc2 {[%clk 0:00:07.5]} 39... Qxc2 {[%clk 0:00:03]}
40. Qf2 {[%clk 0:00:05.4]} 40... Qxd3 {[%clk 0:00:02.5]} 41. Bb6 {[%clk
0:00:03.7]} 41... Bc6 {[%clk 0:00:01.4]} 42. Rxg6 {[%clk 0:00:03.3]} 42... Qd5
{[%clk 0:00:01.7]} 43. Qc5 {[%clk 0:00:02.9]} 43... Qxc5 {[%clk 0:00:02.2]} 44.
Bxc5 {[%clk 0:00:03.8]} 44... Kb7 {[%clk 0:00:02.8]} 45. Bd6 {[%clk 0:00:04]}
45... Re2 {[%clk 0:00:02.6]} 46. Be5 {[%clk 0:00:04.3]} 46... Bf3 {[%clk
0:00:02.9]} 47. Rg5 {[%clk 0:00:03]} 47... Be4 {[%clk 0:00:03]} 48. h4 {[%clk
0:00:03.6]} 48... Kc6 {[%clk 0:00:02.2]} 49. h5 {[%clk 0:00:04.1]} 49... Rd2
{[%clk 0:00:01.9]} 50. h6 {[%clk 0:00:04.4]} 50... Rd7 {[%clk 0:00:02.4]} 51.
Rg7 {[%clk 0:00:04.1]} 51... Rd2 {[%clk 0:00:01.1]} 52. h7 {[%clk 0:00:04.5]}
1-0